fUST/lending_fUST_20250916
["ID","MTS","AMOUNT","RATE_DAILY","PERIOD"]
[385745179,1758003038353,-233.29513139,0.00022008,2]
[385745180,1758003038362,-160.0,0.00022009,2]
[385745181,1758003038371,-160.0,0.00022009,2]
[385745182,1758003038380,-217.86301978,0.00022009,2]
[385745183,1758003038390,-160.0,0.00022009,2]
[385745184,1758003038399,-173.25543759,0.00022091,2]
[385745185,1758003038408,-300.0,0.0002211,2]
[385745186,1758003038417,-622.91,0.00022163,3]
[385745187,1758003038427,-502.65541346,0.00022173,2]
[385745188,1758003038436,-500.0,0.00022173,2]
[385745189,1758003038445,-500.0,0.00022173,2]
[385745190,1758003038455,-500.0,0.00022173,2]
[385745191,1758003038464,-500.0,0.00022173,2]
[385745192,1758003038474,-500.0,0.00022173,2]
[385745193,1758003038483,-500.0,0.00022173,2]
[385745194,1758003038492,-506.33177552,0.00022173,2]
[385745195,1758003038501,-500.0,0.00022189,3]
[385745196,1758003038510,-352.10253599,0.0002219,2]
[385745197,1758003038520,-500.0,0.0002219,2]
[385745198,1758003038528,-193.43943124,0.0002219,2]
[385745199,1758003038537,-500.0,0.0002219,2]
[385745200,1758003038547,-500.0,0.0002219,2]
[385745201,1758003038556,-500.0,0.0002219,2]
[385745202,1758003038565,-500.0,0.0002219,2]
[385745203,1758003038575,-500.0,0.0002219,2]
[385745204,1758003038584,-500.0,0.0002219,2]
[385745205,1758003038593,-500.0,0.0002219,2]
[385745206,1758003038602,-500.0,0.0002219,2]
[385745207,1758003038611,-500.0,0.0002219,2]
[385745208,1758003038621,-500.0,0.0002219,2]
[385745209,1758003038630,-500.0,0.0002219,2]
[385745210,1758003038639,-500.0,0.0002219,2]
[385745211,1758003038652,-500.0,0.0002219,2]
[385745212,1758003038662,-331.03233,0.0002219,2]
[385745213,1758003038672,-500.0,0.0002219,2]
[385745214,1758003038681,-500.0,0.0002219,2]
[385745215,1758003038691,-500.0,0.0002219,2]
[385745216,1758003038700,-500.0,0.0002219,2]
[385745217,1758003038709,-500.0,0.0002219,2]
[385745218,1758003038718,-500.0,0.0002219,2]
[385745219,1758003038728,-500.0,0.0002219,2]
[385745220,1758003038738,-265.47679427,0.0002219,2]
[385745221,1758003038747,-176.07166876,0.00022191,3]
[385745222,1758003038756,-480.0,0.00022191,3]
[385745223,1758003038765,-480.0,0.00022191,3]
[385745224,1758003038774,-480.0,0.00022191,3]
[385745225,1758003038783,-480.0,0.00022191,3]
[385745226,1758003038793,-443.33496437,0.00022191,3]
[385745227,1758003038803,-368.58497926,0.00022191,3]
[385745228,1758003038812,-480.54225241,0.00022191,3]
[385745229,1758003038821,-468.24274041,0.00022191,3]
[385745230,1758003038830,-480.0,0.00022191,3]
[385745231,1758003038839,-480.0,0.00022191,3]
[385745232,1758003038848,-468.15418675,0.00022191,3]
[385745233,1758003038857,-827.89,0.00022191,3]
[385745234,1758003038867,-480.0,0.00022191,3]
[385745235,1758003038876,-480.0,0.00022191,3]
[385745236,1758003038886,-345.27893656,0.00022191,3]
[385745237,1758003038896,-480.0,0.00022191,3]
[385745238,1758003038905,-247.27819196,0.00022191,3]
[385745239,1758003038915,-243.69315676,0.00022191,3]
[385745240,1758003038925,-480.0,0.00022191,3]
[385745241,1758003038935,-480.0,0.00022191,3]
[385745242,1758003038944,-480.0,0.00022191,3]
[385745243,1758003038954,-243.29623334,0.00022191,3]
[385745244,1758003038964,-480.0,0.00022191,3]
[385745245,1758003038973,-480.0,0.00022191,3]
[385745246,1758003038983,-480.0,0.00022191,3]
[385745247,1758003038992,-480.0,0.00022191,3]
[385745248,1758003039001,-480.0,0.00022191,3]
[385745249,1758003039010,-171.55262148,0.00022191,3]
[385745250,1758003039020,-510.07586565,0.00022191,3]
[385745251,1758003039029,-480.0,0.00022191,3]
[385745252,1758003039038,-480.0,0.00022191,3]
[385745253,1758003039047,-160.0,0.00022191,3]
[385745254,1758003039056,-480.0,0.00022191,3]
[385745255,1758003039065,-480.0,0.00022191,3]
[385745256,1758003039074,-480.0,0.00022191,3]
[385745257,1758003039083,-480.0,0.00022191,3]
[385745258,1758003039091,-480.0,0.00022191,3]
[385745259,1758003039100,-480.0,0.00022191,3]
[385745260,1758003039108,-480.0,0.00022191,3]
[385745261,1758003039116,-480.0,0.00022191,3]
[385745262,1758003039125,-763.37,0.00022191,3]
[385745263,1758003039134,-480.0,0.00022191,3]
[385745264,1758003039143,-467.79648607,0.00022191,3]
[385745265,1758003039153,-480.0,0.00022191,3]
[385745266,1758003039162,-480.0,0.00022191,3]
[385745267,1758003039172,-480.0,0.00022191,3]
[385745268,1758003039181,-480.0,0.00022191,3]
[385745269,1758003039190,-480.0,0.00022191,3]
[385745270,1758003039200,-480.0,0.00022191,3]
[385745271,1758003039209,-480.0,0.00022191,3]
[385745272,1758003039218,-480.0,0.00022191,3]
[385745273,1758003039227,-480.0,0.00022191,3]
[385745274,1758003039236,-466.57616418,0.00022191,3]
[385745275,1758003039246,-480.0,0.00022191,3]
[385745276,1758003039255,-638.86,0.00022191,3]
[385745277,1758003039264,-480.0,0.00022191,3]
[385745278,1758003039273,-480.0,0.00022191,3]
[385745279,1758003039283,-480.0,0.00022191,3]
[385745280,1758003039292,-3758.28,0.00022191,3]
[385745281,1758003039301,-480.0,0.00022191,3]
[385745282,1758003039311,-480.0,0.00022191,3]
[385745283,1758003039320,-480.0,0.00022191,3]
[385745284,1758003039331,-417.15472785,0.00022191,3]
[385745285,1758003039341,-480.0,0.00022191,3]
[385745286,1758003039351,-476.85677227,0.00022191,3]
[385745287,1758003039360,-480.0,0.00022191,3]
[385745288,1758003039371,-480.0,0.00022191,3]
[385745289,1758003039380,-480.0,0.00022191,3]
[385745290,1758003039389,-480.0,0.00022191,3]
[385745291,1758003039399,-480.0,0.00022191,3]
[385745292,1758003039410,-480.0,0.00022191,3]
[385745293,1758003039419,-480.0,0.00022191,3]
[385745294,1758003039429,-480.0,0.00022191,3]
[385745295,1758003039438,-480.0,0.00022191,3]
[385745296,1758003039447,-480.0,0.00022191,3]
[385745297,1758003039456,-480.0,0.00022191,3]
[385745299,1758003039466,-480.0,0.00022191,3]
[385745300,1758003039475,-467.76891415,0.00022191,3]
[385745302,1758003039484,-357.3174706,0.00022191,3]
[385745304,1758003039493,-480.0,0.00022191,3]
[385745305,1758003039502,-480.0,0.00022191,3]
[385745306,1758003039511,-474.39629858,0.00022191,3]
[385745307,1758003039521,-564.74982413,0.00022191,3]
[385745309,1758003039531,-480.0,0.00022191,3]
[385745310,1758003039540,-464.32865758,0.00022191,3]
[385745311,1758003039550,-480.0,0.00022191,3]
[385745312,1758003039559,-480.0,0.00022191,3]
[385745313,1758003039567,-480.0,0.00022191,3]
[385745314,1758003039576,-526.81,0.00022191,3]
[385745315,1758003039585,-480.0,0.00022191,3]
[385745316,1758003039593,-1531.65,0.00022191,3]
[385745318,1758003039602,-480.0,0.00022191,3]
[385745319,1758003039611,-480.0,0.00022191,3]
[385745320,1758003039620,-480.0,0.00022191,3]
[385745321,1758003039630,-480.0,0.00022191,3]
[385745322,1758003039639,-480.0,0.00022191,3]
[385745323,1758003039648,-334.15543278,0.00022191,3]
[385745324,1758003039657,-480.0,0.00022191,3]
[385745325,1758003039668,-480.0,0.00022191,3]
[385745326,1758003039678,-480.0,0.00022191,3]
[385745327,1758003039687,-480.0,0.00022191,3]
[385745328,1758003039696,-480.0,0.00022191,3]
[385745329,1758003039706,-469.26261065,0.00022191,3]
[385745330,1758003039715,-480.0,0.00022191,3]
[385745331,1758003039724,-487.99398473,0.00022191,3]
[385745332,1758003039733,-485.70894745,0.00022191,3]
[385745333,1758003039742,-480.0,0.00022191,3]
[385745334,1758003039751,-480.0,0.00022191,3]
[385745335,1758003039761,-686.86,0.00022191,3]
[385745336,1758003039770,-390.69593061,0.00022191,3]
[385745337,1758003039779,-450.0,0.00022247,2]
[385745338,1758003039788,-1213.21595748,0.00022285,2]
[385745339,1758003039797,-600.0,0.00022384,2]
[385745340,1758003039807,-160.0,0.00022464,3]
[385745341,1758003039816,-480.0,0.00022465,3]
[385745342,1758003039825,-480.0,0.00022465,3]
[385745343,1758003039834,-221.87991446,0.00022465,3]
[385745344,1758003039844,-480.0,0.00022465,3]
[385745345,1758003039853,-480.0,0.00022465,3]
[385745347,1758003039949,-827.89,0.00022465,3]
[385745348,1758003039959,-480.0,0.00022465,3]
[385745349,1758003039969,-480.0,0.00022465,3]
[385745350,1758003039979,-480.0,0.00022465,3]
[385745351,1758003039987,-480.0,0.00022465,3]
[385745352,1758003039997,-480.0,0.00022465,3]
[385745353,1758003040006,-480.0,0.00022465,3]
[385745354,1758003040016,-480.0,0.00022465,3]
[385745355,1758003040025,-480.0,0.00022465,3]
[385745356,1758003040034,-480.0,0.00022465,3]
[385745357,1758003040044,-480.0,0.00022465,3]
[385745358,1758003040053,-472.77516837,0.00022465,3]
[385745359,1758003040063,-480.0,0.00022465,3]
[385745360,1758003040072,-480.0,0.00022465,3]
[385745361,1758003040082,-325.96086701,0.00022465,3]
[385745362,1758003040091,-214.38122862,0.00022465,3]
[385745363,1758003040100,-480.0,0.00022465,3]
[385745364,1758003040109,-480.0,0.00022465,3]
[385745365,1758003040119,-480.0,0.00022465,3]
[385745366,1758003040128,-480.0,0.00022465,3]
[385745367,1758003040138,-763.37,0.00022465,3]
[385745368,1758003040147,-480.0,0.00022465,3]
[385745369,1758003040157,-480.0,0.00022465,3]
[385745370,1758003040166,-480.0,0.00022465,3]
[385745371,1758003040176,-480.0,0.00022465,3]
[385745372,1758003040185,-480.0,0.00022465,3]
[385745373,1758003040195,-480.0,0.00022465,3]
[385745374,1758003040204,-638.86,0.00022465,3]
[385745375,1758003040213,-480.0,0.00022465,3]
[385745376,1758003040223,-3758.28,0.00022465,3]
[385745377,1758003040232,-480.0,0.00022465,3]
[385745378,1758003040241,-480.0,0.00022465,3]
[385745379,1758003040250,-480.0,0.00022465,3]
[385745380,1758003040261,-480.0,0.00022465,3]
[385745381,1758003040271,-480.0,0.00022465,3]
[385745382,1758003040279,-480.0,0.00022465,3]
[385745383,1758003040289,-480.0,0.00022465,3]
[385745384,1758003040298,-480.0,0.00022465,3]
[385745385,1758003040307,-480.0,0.00022465,3]
[385745386,1758003040317,-480.0,0.00022465,3]
[385745387,1758003040327,-480.0,0.00022465,3]
[385745388,1758003040339,-480.0,0.00022465,3]
[385745389,1758003040348,-480.0,0.00022465,3]
[385745390,1758003040358,-346.0357999,0.00022465,3]
[385745391,1758003040367,-480.0,0.00022465,3]
[385745392,1758003040376,-480.0,0.00022465,3]
[385745393,1758003040385,-480.0,0.00022465,3]
[385745394,1758003040394,-480.0,0.00022465,3]
[385745395,1758003040403,-1531.65,0.00022465,3]
[385745396,1758003040413,-480.0,0.00022465,3]
[385745397,1758003040422,-480.0,0.00022465,3]
[385745398,1758003040431,-480.0,0.00022465,3]
[385745399,1758003040440,-480.0,0.00022465,3]
[385745400,1758003040449,-480.0,0.00022465,3]
[385745401,1758003040459,-480.0,0.00022465,3]
[385745402,1758003040468,-480.0,0.00022465,3]
[385745403,1758003040477,-480.0,0.00022465,3]
[385745404,1758003040487,-480.0,0.00022465,3]
[385745405,1758003040496,-480.0,0.00022465,3]
[385745406,1758003040505,-480.0,0.00022465,3]
[385745407,1758003040514,-480.0,0.00022465,3]
[385745408,1758003040523,-480.0,0.00022465,3]
[385745409,1758003040532,-686.86,0.00022465,3]
[385745410,1758003040541,-500.0,0.00022473,2]
[385745411,1758003040549,-500.0,0.00022473,2]
[385745412,1758003040558,-500.75195611,0.00022473,2]
[385745413,1758003040568,-500.0,0.00022473,2]
[385745414,1758003040577,-500.0,0.00022473,2]
[385745415,1758003040586,-500.0,0.00022473,2]
[385745416,1758003040595,-293.67466398,0.00022473,2]
[385745417,1758003040604,-500.0,0.00022473,2]
[385745418,1758003040613,-500.0,0.00022473,2]
[385745419,1758003040623,-500.0,0.00022473,2]
[385745420,1758003040632,-501.40540503,0.00022473,2]
[385745421,1758003040642,-174.58159794,0.00022473,2]
[385745422,1758003040652,-500.0,0.00022473,2]
[385745423,1758003040663,-500.0,0.00022473,2]
[385745424,1758003040672,-500.0,0.00022473,2]
[385745425,1758003040682,-500.0,0.00022473,2]
[385745426,1758003040691,-500.0,0.00022473,2]
[385745427,1758003040700,-501.33132528,0.00022473,2]
[385745428,1758003040709,-501.01346299,0.00022473,2]
[385745429,1758003040719,-501.51113363,0.00022473,2]
[385745430,1758003040728,-504.74651727,0.00022473,2]
[385745431,1758003040737,-502.53041432,0.00022473,2]
[385745432,1758003040747,-500.0,0.00022473,2]
[385745433,1758003040756,-500.0,0.00022473,2]
[385745434,1758003040765,-500.0,0.00022473,2]
[385745435,1758003040774,-1680.0,0.00022512,2]
[385745436,1758003040783,-502.05338767,0.00022521,2]
[385745437,1758003040792,-1000.0,0.00022521,2]
[385745438,1758003040801,-1000.0,0.00022521,2]
[385745439,1758003040810,-1000.0,0.00022521,2]
[385745440,1758003040820,-1000.0,0.00022521,2]
[385745441,1758003040829,-703.72204021,0.00022521,2]
[385745442,1758003040838,-1111.72575167,0.00022521,2]
[385745443,1758003040848,-377.66485435,0.00022521,2]
[385745444,1758003040857,-1000.0,0.00022521,2]
[385745445,1758003040866,-1000.0,0.00022521,2]
[385745446,1758003040875,-1000.0,0.00022521,2]
[385745447,1758003040884,-1010.05913368,0.00022521,2]
[385745448,1758003040894,-219.55204424,0.00022521,2]
[385745449,1758003040903,-746.53413389,0.00022559,2]
[385745450,1758003040913,-342.08,0.00022621,2]
[385745451,1758003040922,-2344.49,0.000227,7]
[385745452,1758003040931,-1000.0,0.00022721,2]
[385745453,1758003040940,-502.34057584,0.00022721,2]
[385745454,1758003040949,-1000.0,0.00022721,2]
[385745455,1758003040959,-1000.0,0.00022721,2]
[385745456,1758003040968,-1000.0,0.00022721,2]
[385745457,1758003040977,-584.1834634,0.00022734,2]
[385745458,1758003040987,-330.40217785,0.00022739,3]
[385745459,1758003040996,-480.0,0.00022739,3]
[385745460,1758003041005,-480.0,0.00022739,3]
[385745461,1758003041015,-480.0,0.00022739,3]
[385745462,1758003041024,-827.89,0.00022739,3]
[385745463,1758003041033,-351.65494441,0.00022739,3]
[385745464,1758003041042,-450.98287705,0.00022739,3]
[385745465,1758003041052,-619.98921655,0.00022739,3]
[385745466,1758003041061,-435.63057039,0.00022739,3]
[385745467,1758003041071,-460.92414144,0.00022739,3]
[385745468,1758003041080,-480.0,0.00022739,3]
[385745469,1758003041089,-230.09351721,0.00022739,3]
[385745470,1758003041099,-606.43,0.00022739,3]
[385745471,1758003041108,-480.0,0.00022739,3]
[385745472,1758003041117,-480.0,0.00022739,3]
[385745473,1758003041127,-480.0,0.00022739,3]
[385745474,1758003041136,-480.0,0.00022739,3]
[385745475,1758003041145,-384.31,0.00022739,3]
[385745476,1758003041154,-175.29235482,0.00022739,3]
[385745477,1758003041163,-405.7,0.00022739,3]
[385745478,1758003041173,-763.37,0.00022739,3]
[385745479,1758003041182,-222.28263641,0.00022739,3]
[385745480,1758003041192,-480.0,0.00022739,3]
[385745481,1758003041201,-274.97982665,0.00022739,3]
[385745482,1758003041210,-480.0,0.00022739,3]
[385745483,1758003041219,-480.0,0.00022739,3]
[385745484,1758003041228,-480.0,0.00022739,3]
[385745485,1758003041238,-638.86,0.00022739,3]
[385745486,1758003041247,-480.0,0.00022739,3]
[385745487,1758003041256,-3758.28,0.00022739,3]
[385745488,1758003041266,-480.0,0.00022739,3]
[385745489,1758003041275,-480.0,0.00022739,3]
[385745490,1758003041284,-480.0,0.00022739,3]
[385745491,1758003041293,-480.0,0.00022739,3]
[385745492,1758003041302,-152.37362185,0.00022739,3]
[385745493,1758003041311,-480.0,0.00022739,3]
[385745494,1758003041320,-480.0,0.00022739,3]
[385745495,1758003041331,-480.0,0.00022739,3]
[385745496,1758003041341,-480.0,0.00022739,3]
[385745497,1758003041350,-1531.65,0.00022739,3]
[385745498,1758003041359,-480.0,0.00022739,3]
[385745499,1758003041369,-480.0,0.00022739,3]
[385745500,1758003041379,-480.0,0.00022739,3]
[385745501,1758003041388,-480.0,0.00022739,3]
[385745502,1758003041397,-253.85026314,0.00022739,3]
[385745503,1758003041407,-480.0,0.00022739,3]
[385745504,1758003041417,-338.27722451,0.00022739,3]
[385745505,1758003041426,-480.0,0.00022739,3]
[385745506,1758003041435,-480.0,0.00022739,3]
[385745507,1758003041445,-517.37841268,0.00022739,3]
[385745508,1758003041454,-480.0,0.00022739,3]
[385745509,1758003041463,-686.86,0.00022739,3]
[385745510,1758003041472,-335.0,0.00022768,2]
[385745511,1758003041481,-420.0,0.00022768,2]
[385745512,1758003041490,-303.0,0.00022768,2]
[385745513,1758003041500,-7573.7528985,0.00022912,2]
[385745514,1758003041509,-28405.1425221,0.00022912,3]
[385745515,1758003041518,-160.0,0.0002294,2]
[385745516,1758003041527,-500.68439844,0.00022973,2]
[385745517,1758003041536,-501.98150874,0.00022973,2]
[385745518,1758003041545,-500.0,0.00022973,2]
[385745519,1758003041554,-500.0,0.00022973,2]
[385745520,1758003041563,-500.0,0.00022973,2]
[385745521,1758003041571,-500.0,0.00022973,2]
[385745522,1758003041581,-500.0,0.00022973,2]
[385745523,1758003041589,-20405.68915621,0.0002299,2]
[385745524,1758003041598,-173.25543759,0.00022994,2]
[385745525,1758003041607,-1379.71016288,0.00022997,2]
[385745526,1758003041616,-233.29513139,0.00023,3]
[385745527,1758003041626,-160.0,0.00023,3]
[385745528,1758003041635,-160.0,0.00023,3]
[385745529,1758003041855,-160.0,0.00023,2]
[385745530,1758003041865,-847.61663983,0.00023,3]
[385745531,1758003041875,-480.0,0.00023013,3]
[385745532,1758003041884,-480.0,0.00023013,3]
[385745533,1758003041893,-554.66,0.00023013,3]
[385745534,1758003041903,-827.89,0.00023013,3]
[385745535,1758003041912,-544.45613658,0.00023013,3]
[385745536,1758003041921,-247.09,0.00023013,3]
[385745537,1758003041930,-596.55,0.00023013,3]
[385745538,1758003041939,-513.07,0.00023013,3]
[385745539,1758003041949,-336.38,0.00023013,3]
[385745540,1758003041958,-763.37,0.00023013,3]
[385745541,1758003041968,-480.0,0.00023013,3]
[385745542,1758003041977,-480.0,0.00023013,3]
[385745543,1758003041987,-480.0,0.00023013,3]
[385745544,1758003041996,-480.0,0.00023013,3]
[385745545,1758003042005,-638.86,0.00023013,3]
[385745546,1758003042014,-618.14803816,0.00023013,3]
[385745547,1758003042023,-3758.28,0.00023013,3]
[385745548,1758003042033,-480.0,0.00023013,3]
[385745549,1758003042043,-480.0,0.00023013,3]
[385745550,1758003042052,-480.0,0.00023013,3]
[385745551,1758003042061,-287.93,0.00023013,3]
[385745552,1758003042070,-480.0,0.00023013,3]
[385745553,1758003042079,-480.0,0.00023013,3]
[385745554,1758003042089,-480.0,0.00023013,3]
[385745555,1758003042098,-629.95644982,0.00023013,3]
[385745556,1758003042108,-1531.65,0.00023013,3]
[385745557,1758003042122,-480.0,0.00023013,3]
[385745558,1758003042131,-480.0,0.00023013,3]
[385745559,1758003042142,-550.19069414,0.00023013,3]
[385745560,1758003042156,-480.0,0.00023013,3]
[385745561,1758003042170,-480.0,0.00023013,3]
[385745562,1758003042179,-686.86,0.00023013,3]
[385745563,1758003042189,-1000.0,0.00023021,2]
[385745564,1758003042198,-1000.0,0.00023021,2]
[385745565,1758003042207,-1000.0,0.00023021,2]
[385745566,1758003042216,-1000.0,0.00023021,2]
[385745567,1758003042225,-1000.0,0.00023021,2]
[385745568,1758003042234,-1000.0,0.00023021,2]
[385745569,1758003042243,-500.98431332,0.00023021,2]
[385745570,1758003042252,-1000.0,0.00023021,2]
[385745571,1758003042261,-1003.87396356,0.00023021,2]
[385745572,1758003042270,-626.12047537,0.00023021,2]
[385745573,1758003042279,-1000.0,0.00023021,2]
[385745574,1758003042289,-500.0,0.00023068,2]
[385745575,1758003042298,-990.18785629,0.00023068,2]
[385745576,1758003042308,-1500.0,0.00023068,2]
[385745577,1758003042317,-1500.0,0.00023068,2]
[385745578,1758003042327,-1500.0,0.00023068,2]
[385745579,1758003042339,-1500.0,0.00023068,2]
[385745580,1758003042348,-1500.0,0.00023068,2]
[385745581,1758003042437,-500.0,0.00023073,2]
[385745582,1758003042446,-23264.16,0.000231,7]
[385745583,1758003042455,-160.0,0.000231,7]
[385745584,1758003042464,-417.15472785,0.000231,7]
[385745585,1758003042474,-555.90525608,0.00023225,2]
[385745587,1758003042484,-1500.0,0.00023268,2]
[385745588,1758003042493,-503.35921457,0.00023268,2]
[385745589,1758003042502,-1500.0,0.00023268,2]
[385745590,1758003042512,-1500.0,0.00023268,2]
[385745591,1758003042521,-480.0,0.00023287,3]
[385745592,1758003042531,-480.0,0.00023287,3]
[385745593,1758003042540,-827.89,0.00023287,3]
[385745594,1758003042551,-763.37,0.00023287,3]
[385745595,1758003042561,-480.0,0.00023287,3]
[385745596,1758003042570,-480.0,0.00023287,3]
[385745597,1758003042579,-480.0,0.00023287,3]
[385745598,1758003042589,-480.0,0.00023287,3]
[385745599,1758003042598,-638.86,0.00023287,3]
[385745600,1758003042607,-3758.28,0.00023287,3]
[385745601,1758003042616,-480.0,0.00023287,3]
[385745602,1758003042626,-480.0,0.00023287,3]
[385745603,1758003042635,-480.0,0.00023287,3]
[385745604,1758003042645,-480.0,0.00023287,3]
[385745605,1758003042654,-480.0,0.00023287,3]
[385745607,1758003042664,-480.0,0.00023287,3]
[385745609,1758003042674,-1531.65,0.00023287,3]
[385745611,1758003042684,-480.0,0.00023287,3]
[385745613,1758003042693,-480.0,0.00023287,3]
[385745614,1758003042703,-480.0,0.00023287,3]
[385745616,1758003042719,-1379.04,0.00023287,2]
[385745617,1758003042729,-480.0,0.00023287,3]
[385745618,1758003042739,-686.86,0.00023287,3]
[385745619,1758003042750,-500.0,0.0002345,2]
[385745620,1758003042760,-501.55296951,0.0002345,2]
[385745621,1758003042770,-500.0,0.0002345,2]
[385745622,1758003042780,-500.0,0.0002345,2]
[385745623,1758003042790,-500.0,0.0002345,2]
[385745624,1758003042800,-260.0,0.00023488,2]
[385745625,1758003042815,-500.59864287,0.00023521,2]
[385745626,1758003042824,-1000.0,0.00023521,2]
[385745627,1758003042836,-1000.0,0.00023521,2]
[385745628,1758003042846,-1000.0,0.00023521,2]
[385745629,1758003042855,-480.0,0.00023561,3]
[385745630,1758003042865,-480.0,0.00023561,3]
[385745631,1758003042874,-827.89,0.00023561,3]
[385745632,1758003042883,-763.37,0.00023561,3]
[385745633,1758003042892,-480.0,0.00023561,3]
[385745634,1758003042902,-480.0,0.00023561,3]
[385745635,1758003042911,-338.13009797,0.00023561,3]
[385745636,1758003042920,-480.0,0.00023561,3]
[385745637,1758003042930,-638.86,0.00023561,3]
[385745638,1758003042939,-3758.28,0.00023561,3]
[385745639,1758003042949,-425.16,0.00023561,3]
[385745640,1758003042958,-480.0,0.00023561,3]
[385745641,1758003042967,-480.0,0.00023561,3]
[385745642,1758003042976,-480.0,0.00023561,3]
[385745643,1758003042986,-480.0,0.00023561,3]
[385745644,1758003042995,-480.0,0.00023561,3]
[385745645,1758003043004,-1531.65,0.00023561,3]
[385745646,1758003043013,-480.0,0.00023561,3]
[385745647,1758003043022,-480.0,0.00023561,3]
[385745648,1758003043032,-480.0,0.00023561,3]
[385745649,1758003043041,-480.0,0.00023561,3]
[385745650,1758003043050,-686.86,0.00023561,3]
[385745651,1758003043059,-1500.0,0.00023568,2]
[385745652,1758003043068,-1375.31678154,0.00023568,2]
[385745653,1758003043077,-444.31084818,0.00023568,2]
[385745654,1758003043087,-1501.82102218,0.00023568,2]
[385745655,1758003043096,-178.58858412,0.00023568,2]
[385745656,1758003043105,-1244.99550726,0.00023568,2]
[385745657,1758003043114,-1500.0,0.00023568,2]
[385745658,1758003043123,-501.72701477,0.00023568,2]
[385745659,1758003043132,-154.5,0.00023579,3]
[385745660,1758003043141,-391.89977607,0.000236,2]
[385745661,1758003043151,-2000.0,0.00023616,2]
[385745662,1758003043159,-2000.0,0.00023616,2]
[385745663,1758003043169,-2000.0,0.00023616,2]
[385745664,1758003043178,-2000.0,0.00023616,2]
[385745665,1758003043187,-500.0,0.00023616,2]
[385745666,1758003043197,-1000.76270565,0.00023621,2]
[385745667,1758003043206,-5000.0,0.00023735,2]
[385745668,1758003043215,-391.89977607,0.000238,2]
[385745669,1758003043225,-2000.0,0.00023816,2]
[385745670,1758003043234,-504.18871267,0.00023816,2]
[385745672,1758003043243,-1021.40567582,0.00023816,2]
[385745673,1758003043252,-480.0,0.00023835,3]
[385745674,1758003043262,-480.0,0.00023835,3]
[385745675,1758003043271,-827.89,0.00023835,3]
[385745676,1758003043280,-763.37,0.00023835,3]
[385745677,1758003043289,-480.0,0.00023835,3]
[385745678,1758003043299,-509.24,0.00023835,3]
[385745679,1758003043308,-638.86,0.00023835,3]
[385745680,1758003043317,-3758.28,0.00023835,3]
[385745681,1758003043327,-480.0,0.00023835,3]
[385745682,1758003043340,-480.0,0.00023835,3]
[385745683,1758003043349,-480.0,0.00023835,3]
[385745684,1758003043359,-480.0,0.00023835,3]
[385745685,1758003043368,-480.0,0.00023835,3]
[385745686,1758003043378,-1531.65,0.00023835,3]
[385745687,1758003043387,-480.0,0.00023835,3]
[385745688,1758003043397,-480.0,0.00023835,3]
[385745689,1758003043407,-480.0,0.00023835,3]
[385745690,1758003043416,-480.0,0.00023835,3]
[385745691,1758003043427,-686.86,0.00023835,3]